bitfinex/quotes_SOLUSD_20260203
["timestamp","ask_amount","ask_price","bid_price","bid_amount"]
[1770087015977,13.57886881,102.81,102.77,23.49693191]
[1770087016261,24.31249838,102.83,102.79,13.76646583]
[1770087016262,4.12724894,102.83,102.79,13.76646583]
[1770087016462,9.45161987,102.85,102.81,4.31484596]
[1770087016761,4.12724894,102.85,102.81,13.76646583]
[1770087016969,13.57886881,102.85,102.8,13.76646583]
[1770087017162,13.57886881,102.85,102.81,9.72668028]
[1770087017363,4.12724894,102.85,102.82,9.45161987]
[1770087017868,13.57886881,102.86,102.82,9.45161987]
[1770087019154,4.12724894,102.86,102.83,19.17640835]
[1770087019373,23.29936988,102.88,102.83,47.80322552]
[1770087019572,4.12724894,102.9,102.86,9.45161987]
[1770087019870,4.12724894,102.9,102.86,13.76646583]
[1770087020082,23.44061787,102.92,102.88,9.45161987]
[1770087020368,13.72409491,102.92,102.88,9.45161987]
[1770087020552,4.07247504,102.91,102.88,9.45161987]
[1770087020943,4.07247504,102.91,102.87,4.25457884]
[1770087021148,13.52409491,102.91,102.87,19.17184082]
[1770087021777,4.07247504,102.91,102.87,19.17184082]
[1770087022069,23.24153562,102.91,102.87,9.72022095]
[1770087022268,4.07247504,102.89,102.87,9.72022095]
[1770087022497,4.07247504,102.87,102.83,13.70619871]
[1770087022772,9.45161987,102.86,102.83,9.7243354]
[1770087024057,13.52409491,102.87,102.83,9.7243354]
[1770087024256,23.2451673,102.87,102.83,9.7243354]
[1770087024872,13.52409491,102.87,102.83,9.7243354]
[1770087025066,23.24516708,102.87,102.83,9.7243354]
[1770087025764,23.24516708,102.87,102.83,13.97891424]
[1770087026753,4.07247504,102.86,102.81,4.25457884]
[1770087026955,4.07247504,102.86,102.82,13.70619871]
[1770087027253,4.07247504,102.86,102.82,4.25457884]
[1770087027254,13.52409491,102.86,102.82,4.25457884]
[1770087027454,9.72107217,102.87,102.82,13.70619871]
[1770087027455,19.17269204,102.87,102.82,13.70619871]
[1770087027652,23.24516708,102.87,102.83,4.25457884]
[1770087028956,23.24516708,102.87,102.83,13.97890403]
[1770087030374,9.45161987,102.86,102.83,13.97890403]
[1770087032581,4.07247504,102.83,102.79,38.30458369]
[1770087032754,13.52409491,102.82,102.79,9.72857281]
[1770087032953,9.45161987,102.81,102.79,9.72857281]
[1770087033457,4.07247504,102.82,102.79,9.72857281]
[1770087033458,13.52409491,102.82,102.79,9.72857281]
[1770087034461,9.45161987,102.83,102.8,4.25457884]
[1770087034663,9.45161987,102.83,102.79,13.98315165]
[1770087034664,9.45161987,102.82,102.79,13.98315165]
[1770087035270,13.52409491,102.83,102.79,13.98315165]
[1770087036477,13.52682885,102.83,102.79,13.98315165]
[1770087036886,4.07247504,102.83,102.8,4.25457884]
[1770087037273,4.07247504,102.83,102.79,47.7589375]
[1770087038683,4.07247504,102.83,102.8,4.25457884]
[1770087038984,29.40816087,102.87,102.82,13.70893265]
[1770087039280,19.95380706,102.87,102.83,4.25457884]
[1770087039485,10.23269155,102.87,102.84,4.25457884]
[1770087040182,19.68704536,102.87,102.83,4.25457884]
[1770087040974,13.52682885,102.85,102.82,9.72509422]
[1770087041680,4.07247504,102.85,102.83,9.72456008]
[1770087042085,4.07247504,102.85,102.82,34.03926872]
[1770087042281,4.07247504,102.85,102.82,9.7252121]
[1770087042689,13.52682885,102.86,102.83,9.72459785]
[1770087043689,25.33620323,102.87,102.83,13.97917669]
[1770087043881,19.68704536,102.87,102.83,13.97917669]
[1770087044089,29.40820137,102.87,102.83,13.97917669]
[1770087044882,19.68704536,102.87,102.83,13.97917669]
[1770087046005,29.40824366,102.87,102.83,13.97917669]
[1770087046490,19.68704536,102.87,102.83,38.2911479]
[1770087047696,6.16021651,102.87,102.84,4.25457884]
[1770087047872,6.16021651,102.87,102.85,13.97747626]
[1770087048283,6.16021651,102.87,102.85,23.43183007]
[1770087048788,6.16021651,102.87,102.85,9.72289742]
[1770087048993,6.16021651,102.87,102.85,13.97747626]
[1770087049189,6.16021651,102.87,102.86,4.25457884]
[1770087049190,1e-08,102.87,102.86,4.25457884]
[1770087049395,1e-08,102.87,102.86,13.70893265]
[1770087050098,1e-08,102.87,102.86,23.43088481]
[1770087050298,13.72682885,102.92,102.87,4.27651277]
[1770087050504,4.27247504,102.92,102.88,13.69330617]
[1770087050795,23.44325328,102.92,102.88,4.23895236]
[1770087051394,4.25538333,102.89,102.86,38.26578493]
[1770087051607,13.70973714,102.89,102.86,9.72195216]
[1770087052393,13.70973714,102.87,102.83,4.23895236]
[1770087052593,9.45435381,102.85,102.82,24.31225516]
[1770087053778,9.45435381,102.85,102.81,9.7261924]
[1770087053779,4.25538333,102.83,102.81,9.7261924]
[1770087054097,9.45435381,102.82,102.8,9.7271401]
[1770087054398,9.45435381,102.81,102.79,9.72807551]
[1770087054895,9.45435381,102.82,102.79,13.96702787]
[1770087055093,9.45435381,102.82,102.79,9.72807551]
[1770087056092,23.43461243,102.83,102.79,9.72807551]
[1770087056272,13.70973714,102.82,102.79,9.72807551]
[1770087057273,13.70973714,102.81,102.78,24.32161611]
[1770087057478,9.45435381,102.79,102.75,27.02]
[1770087057675,4.25538333,102.81,102.75,27.02]
[1770087057676,9.45435381,102.78,102.76,9.73093559]
[1770087058290,9.45435381,102.78,102.74,13.97168518]
[1770087058504,9.45435381,102.77,102.74,13.97168518]
[1770087058800,9.45435381,102.78,102.74,13.97168518]
[1770087059397,13.70973714,102.78,102.74,13.97168518]
[1770087059702,13.70973714,102.79,102.75,4.23895236]
[1770087060285,9.45435381,102.8,102.76,4.23895236]
[1770087060498,9.45435381,102.8,102.76,13.69330617]
[1770087060804,4.25538333,102.76,102.74,9.73273282]
[1770087061021,4.25538333,102.77,102.73,12.20595336]
[1770087061206,4.25538333,102.74,102.73,2.47215037]
[1770087061796,13.70973714,102.75,102.73,2.47215037]
[1770087062185,13.70973714,102.76,102.73,2.47215037]
[1770087062392,4.25538333,102.76,102.73,2.47215037]
[1770087062598,13.70973714,102.8,102.75,13.69330617]
[1770087062809,23.43499185,102.83,102.78,9.45435381]
[1770087062996,23.43499185,102.83,102.73,124.15007723]
[1770087062997,4.25538333,102.83,102.79,4.23895236]
[1770087063302,13.70973714,102.84,102.8,9.45435381]
[1770087063508,23.43384635,102.84,102.8,13.96657881]
[1770087063891,4.25538333,102.83,102.79,19.18249195]
[1770087064107,13.70973714,102.83,102.79,9.72813814]
[1770087064604,9.45435381,102.84,102.79,47.74287635]
[1770087064899,4.25538333,102.84,102.8,13.69330617]
[1770087065289,13.70973714,102.84,102.8,13.69330617]
[1770087065489,23.43376416,102.84,102.8,13.96633749]
[1770087065705,4.25538333,102.82,102.79,9.72842651]
[1770087066019,13.70973714,102.82,102.79,9.72842651]
[1770087066611,4.25538333,102.82,102.79,9.72842651]
[1770087066799,13.70973714,102.82,102.79,9.72842651]
[1770087070708,4.25538333,102.79,102.76,9.73062347]
[1770087070916,4.25538333,102.79,102.75,38.02389765]
[1770087071207,4.25538333,102.79,102.76,9.73089748]
[1770087071410,13.70973714,102.8,102.76,23.42420365]
[1770087071998,23.43741174,102.8,102.76,13.96984984]
[1770087072915,23.43653504,102.81,102.77,4.23895236]
[1770087073548,23.43653504,102.81,102.77,13.96856774]
[1770087073724,4.25538333,102.81,102.77,47.74908677]
[1770087073910,4.25538333,102.81,102.78,9.45435381]
[1770087074113,13.70973714,102.83,102.79,13.69330617]
[1770087075013,4.25538333,102.83,102.79,13.69330617]
[1770087075408,13.70973714,102.83,102.79,4.23895236]
[1770087075791,13.70973714,102.83,102.8,9.72762645]
[1770087077199,4.25538333,102.82,102.79,9.72832378]
[1770087077419,4.25538333,102.81,102.78,9.7292606]
[1770087077806,23.43649414,102.81,102.78,9.7292606]
[1770087078498,19.18049397,102.82,102.78,13.96821296]
[1770087078699,9.45435381,102.81,102.78,13.96821296]
[1770087079145,9.45435381,102.81,102.77,13.96887163]
[1770087079426,9.45435381,102.8,102.77,13.96887163]
[1770087079802,9.45435381,102.8,102.76,34.0596917]
[1770087080003,9.45435381,102.77,102.73,12.20600965]
[1770087080215,9.45435381,102.76,102.73,2.47215037]
[1770087080520,9.45435381,102.75,102.73,2.47215037]
[1770087081044,4.29821971,102.77,102.74,9.7331532]
[1770087081206,13.75257352,102.77,102.74,9.7331532]
[1770087081524,13.75257352,102.77,102.74,9.2331532]
[1770087081708,13.75257352,102.77,102.73,16.48083062]
[1770087082608,23.48315807,102.77,102.73,16.48083062]
[1770087082916,9.45435381,102.78,102.75,4.27493763]
[1770087083422,13.75257352,102.78,102.74,4.27493763]
[1770087084219,13.75257352,102.78,102.74,14.0074608]
[1770087084427,9.45435381,102.77,102.74,14.00809473]
[1770087084922,4.29821971,102.78,102.74,14.00809473]
[1770087085231,23.48134065,102.79,102.75,4.27493763]
[1770087085926,13.75257352,102.79,102.75,4.27493763]
[1770087086615,23.48114981,102.79,102.75,14.0065784]
[1770087087212,13.75257352,102.79,102.75,47.79183245]
[1770087087619,4.29821971,102.78,102.75,9.23164077]
[1770087087914,13.75257352,102.78,102.75,9.23164077]
[1770087088743,4.29821971,102.78,102.75,13.5065784]
[1770087089032,13.75257352,102.8,102.76,4.27493763]
[1770087090122,23.48026634,102.8,102.76,4.27493763]
[1770087091428,22.48026634,102.8,102.76,14.00557495]
[1770087091634,3.29821971,102.8,102.77,4.27493763]
[1770087091826,24.31443454,102.82,102.78,4.27493763]
[1770087091827,19.18026771,102.82,102.78,4.27493763]
[1770087092025,23.47848742,102.82,102.78,3.27493763]
[1770087092212,13.75257352,102.81,102.76,43.51352363]
[1770087093935,13.75257352,102.81,102.78,9.72951936]
[1770087096330,4.29821971,102.83,102.79,4.27493763]
[1770087096528,4.29821971,102.83,102.78,9.45435381]
[1770087096529,28.60030209,102.88,102.82,4.27493763]
[1770087096721,4.29821971,102.88,102.84,4.27493763]
[1770087096928,4.29821971,102.88,102.84,13.72929144]
[1770087097241,9.45435381,102.87,102.84,4.27493763]
[1770087097431,23.472653,102.88,102.84,4.27493763]
[1770087097743,4.29821971,102.88,102.84,13.72929144]
[1770087098122,13.75257352,102.88,102.84,13.72929144]
[1770087098323,13.75257352,102.88,102.85,9.72289742]
[1770087098633,13.74326234,102.88,102.85,9.72289742]
[1770087098831,23.4616127,102.9,102.86,4.27493763]
[1770087099035,13.74326234,102.89,102.86,4.27493763]
[1770087099536,4.29821971,102.89,102.86,4.27493763]
[1770087099936,13.74326234,102.89,102.85,47.75012123]
[1770087100241,4.29821971,102.89,102.85,47.75012123]
[1770087100539,19.16339299,102.9,102.86,13.71998026]
[1770087100721,19.16339299,102.9,102.87,4.27493763]
[1770087100722,4.29821971,102.9,102.87,4.27493763]
[1770087100917,4.29821971,102.89,102.86,4.27493763]
[1770087101121,13.74326234,102.89,102.85,47.75012123]
[1770087103545,12.14843487,102.89,102.85,38.3050786]
[1770087105546,12.14843487,102.89,102.85,47.75012123]
[1770087105722,13.74326234,102.87,102.84,9.72338389]
[1770087106122,34.01695175,102.89,102.82,9.44504263]
[1770087106123,13.74326234,102.85,102.82,14.00015244]
[1770087106338,13.74326234,102.83,102.8,14.00211196]
[1770087106553,13.74326234,102.81,102.79,9.72825833]
[1770087106728,9.44504263,102.8,102.77,14.00462738]
[1770087107245,9.44504263,102.79,102.77,14.00462738]
[1770087107625,9.44504263,102.8,102.77,14.00462738]
[1770087107836,13.74326234,102.81,102.77,38.3307926]
[1770087108023,13.74326234,102.81,102.78,4.27493763]
[1770087108445,9.44504263,102.8,102.78,4.27493763]
[1770087109346,9.44504263,102.8,102.77,14.00496214]
[1770087109545,23.46997197,102.81,102.77,14.00496214]
[1770087111247,23.46997197,102.81,102.77,14.00537244]
[1770087111750,9.44504263,102.8,102.77,14.00537244]
[1770087111952,9.44504263,102.8,102.77,13.00537244]
[1770087114855,13.98629946,102.82,102.78,4.24409072]
[1770087115036,9.44504263,102.82,102.79,4.24409072]
[1770087116250,9.44504263,102.82,102.79,13.97221778]
[1770087116833,13.98524662,102.83,102.79,13.97221778]
[1770087117051,23.43028925,102.83,102.79,13.97221778]
[1770087117930,13.70509509,102.82,102.79,13.97221778]
[1770087118136,4.26005246,102.81,102.79,9.72812706]
[1770087118338,13.70509509,102.81,102.79,9.72812706]
[1770087118660,9.44504263,102.81,102.79,9.72812706]
[1770087119334,13.70509509,102.82,102.79,9.72812706]
[1770087120756,13.70509509,102.82,102.79,13.97221778]
[1770087121081,13.70509509,102.83,102.79,13.97221778]
[1770087121366,9.44504263,102.82,102.79,13.97221778]
[1770087121544,4.26005246,102.79,102.74,4.24409072]
[1770087121735,13.70509509,102.77,102.74,34.06468599]
[1770087122136,9.44504263,102.76,102.74,9.73330737]
[1770087122430,4.26005246,102.77,102.74,13.97739809]
[1770087122630,4.26005246,102.8,102.76,13.68913335]
[1770087122834,23.43094404,102.82,102.78,4.24409072]
[1770087123555,4.26005246,102.83,102.79,9.44504263]
[1770087124033,23.42819476,102.85,102.8,13.68913335]
[1770087124356,4.26005246,102.84,102.81,4.24409072]
[1770087124530,23.42996338,102.83,102.8,4.24409072]
[1770087124735,23.42996338,102.83,102.79,13.97203115]
[1770087124950,4.26005246,102.83,102.8,13.97169959]
[1770087125341,4.26005246,102.83,102.79,13.97213297]
[1770087125342,23.43005548,102.83,102.79,13.97213297]
[1770087125545,13.70509509,102.81,102.78,9.72906761]
[1770087126156,34.0369316,102.83,102.79,9.7284277]
[1770087126351,23.43005548,102.83,102.79,13.68913335]
[1770087126756,23.43005548,102.83,102.79,13.97212365]
[1770087127468,13.70509509,102.82,102.79,13.97212365]
[1770087127675,4.26005246,102.8,102.78,9.72901122]
[1770087127835,13.70509509,102.8,102.77,9.7299572]
[1770087128749,13.70509509,102.8,102.77,13.97404792]
[1770087128969,4.26005246,102.8,102.77,13.97404792]
[1770087129340,23.43010722,102.83,102.79,4.24409072]
[1770087129851,23.42936341,102.84,102.8,4.24409072]
[1770087130050,4.26005246,102.84,102.81,4.24409072]
[1770087130242,23.42904997,102.84,102.81,4.24409072]
[1770087130749,23.42904997,102.84,102.8,9.44504263]
[1770087130954,13.70509509,102.83,102.79,4.24409072]
[1770087131260,4.26005246,102.81,102.78,9.7286823]
[1770087131443,13.70509509,102.81,102.78,9.7286823]
[1770087133577,13.70509509,102.83,102.79,13.68913335]
[1770087134267,13.70509509,102.84,102.8,13.68913335]
[1770087134446,4.26005246,102.85,102.81,13.68913335]
[1770087134645,23.42807032,102.85,102.81,13.68913335]
[1770087134854,23.42807032,102.85,102.81,4.24409072]
[1770087135664,12.59126841,102.84,102.81,9.72613302]
[1770087136869,3.14622578,102.84,102.81,9.72613302]
[1770087137169,3.14622578,102.84,102.81,13.97022374]
[1770087137366,12.59126841,102.84,102.81,13.97022374]
[1770087137564,3.14622578,102.84,102.81,13.97022374]
[1770087137774,12.59126841,102.84,102.81,13.97022374]
[1770087139177,19.16744376,102.86,102.82,4.24409072]
[1770087139471,9.44504263,102.85,102.81,23.41526637]
[1770087139672,9.44504263,102.84,102.81,13.97022374]
[1770087142168,13.83515929,102.85,102.81,13.97022374]
[1770087142372,13.83515929,102.85,102.82,4.2447481]
[1770087142373,13.5570242,102.85,102.82,4.2447481]
[1770087143256,13.5570242,102.85,102.82,13.97041221]
[1770087143971,23.28002528,102.85,102.82,13.97041221]
[1770087144272,23.28002528,102.85,102.82,4.2447481]
[1770087144852,13.5570242,102.85,102.82,13.97020723]
[1770087145064,4.11198157,102.85,102.82,13.97020723]
[1770087146471,23.27858729,102.87,102.83,4.2447481]
[1770087146957,19.16558313,102.88,102.84,4.2447481]
[1770087147163,13.83088314,102.9,102.86,4.2447481]
[1770087147484,13.5570242,102.9,102.86,4.2447481]
[1770087147654,13.5570242,102.89,102.85,4.2447481]
[1770087147853,13.5570242,102.88,102.85,4.2447481]
[1770087148056,13.5570242,102.87,102.83,13.96874523]
[1770087148356,4.11198157,102.87,102.84,9.72366366]
[1770087148559,13.5570242,102.86,102.83,13.96936517]
[1770087149083,13.8321443,102.88,102.84,4.2447481]
[1770087149261,23.27718693,102.88,102.84,4.2447481]
[1770087149778,23.27563271,102.9,102.86,13.96617829]
[1770087150378,19.16365114,102.9,102.86,9.72143019]
[1770087150584,13.5570242,102.87,102.83,28.55623671]
[1770087150779,9.44504263,102.86,102.83,28.55623671]
[1770087151285,9.44504263,102.86,102.84,9.72347019]
[1770087151488,13.5570242,102.87,102.84,9.72347019]
[1770087151987,13.5570242,102.87,102.84,9.7235476]
[1770087152197,9.44504263,102.85,102.83,4.2447481]
[1770087152360,13.5570242,102.86,102.83,4.2447481]
[1770087153080,13.5570242,102.86,102.83,13.96949411]
[1770087153283,13.5570242,102.85,102.82,4.2447481]
[1770087153490,9.44504263,102.84,102.82,4.2447481]
[1770087153690,13.5570242,102.84,102.81,9.72613678]
[1770087153868,13.5570242,102.84,102.81,4.2447481]
[1770087156084,9.44504263,102.84,102.81,9.72620685]
[1770087156272,9.44504263,102.85,102.82,4.2447481]
[1770087156689,9.44504263,102.84,102.81,38.28765566]
[1770087156864,9.44504263,102.84,102.81,13.97095495]
[1770087157069,9.44504263,102.83,102.81,13.97095495]
[1770087157384,13.5570242,102.84,102.81,13.97095495]
[1770087157563,9.44504263,102.84,102.81,13.97095495]
[1770087157761,13.5570242,102.85,102.81,13.97095495]
[1770087158280,23.28039766,102.85,102.81,13.97095495]
[1770087158866,13.5570242,102.85,102.82,4.2447481]
[1770087159067,9.44504263,102.86,102.82,4.2447481]
[1770087159586,9.44504263,102.84,102.81,13.97095495]
[1770087159787,9.44504263,102.84,102.81,9.72620685]
[1770087159988,13.5570242,102.85,102.82,4.2447481]
[1770087160383,13.56369903,102.85,102.82,4.2447481]
[1770087160583,13.56369903,102.85,102.82,13.97047143]
[1770087162588,4.11198157,102.82,102.78,9.72911475]
[1770087162776,9.45171746,102.79,102.77,9.7300335]
[1770087163597,9.45171746,102.79,102.76,13.9756581]
[1770087165686,4.11198157,102.8,102.76,13.9756581]
[1770087165887,9.45171746,102.79,102.76,13.9756581]
[1770087166190,9.45171746,102.79,102.77,4.2447481]
[1770087166489,4.11198157,102.82,102.78,9.72951936]
[1770087166676,9.45171746,102.8,102.77,10.84020668]
[1770087167188,13.56369903,102.8,102.77,9.72998244]
[1770087167691,9.45171746,102.79,102.77,9.72998244]
[1770087167875,13.56369903,102.8,102.77,9.72998244]
[1770087170495,13.6806442,102.78,102.74,4.13721724]
[1770087170796,9.45171746,102.79,102.75,4.13721724]
[1770087171296,13.6806442,102.79,102.75,4.13721724]
[1770087171890,65.9161544,102.84,102.77,4.13721724]
[1770087171891,4.22892674,102.84,102.77,4.13721724]
[1770087172094,4.22892674,102.84,102.76,9.73130809]
[1770087172095,4.22892674,102.83,102.79,4.13721724]
[1770087172298,13.6806442,102.82,102.78,13.5889347]
[1770087172479,13.6806442,102.82,102.78,4.13721724]
[1770087173899,13.6806442,102.82,102.78,13.86598729]
[1770087174601,23.4064675,102.82,102.78,13.86598729]
[1770087175683,13.6806442,102.79,102.75,28.46654843]
[1770087175998,13.6806442,102.79,102.76,13.86816469]
[1770087176306,13.6806442,102.78,102.75,9.73205758]
[1770087176999,4.22892674,102.78,102.75,9.73205758]
[1770087177202,13.6806442,102.8,102.76,13.86859548]
[1770087177403,4.22892674,102.8,102.77,9.73030359]
[1770087177607,4.22892674,102.79,102.77,9.73030359]
[1770087179099,24.31450062,102.82,102.78,4.13721724]
[1770087179100,4.22892674,102.82,102.78,4.13721724]
[1770087179287,23.40642374,102.82,102.78,4.13721724]
[1770087179488,4.22892674,102.81,102.78,4.13721724]
[1770087179987,4.22892674,102.81,102.78,13.5889347]
[1770087180502,4.22892674,102.8,102.77,38.19368605]
[1770087180805,13.6806442,102.81,102.77,38.19368605]
[1770087181114,13.6806442,102.81,102.77,47.64540351]
[1770087181307,13.6806442,102.81,102.77,38.19368605]
[1770087181508,23.40735325,102.81,102.77,38.19368605]
[1770087181703,13.6806442,102.79,102.77,9.73030359]
[1770087181909,4.22892674,102.79,102.76,9.73073389]
[1770087182101,4.22892674,102.79,102.77,9.73034088]
[1770087182905,4.22892674,102.79,102.75,37.91833121]
[1770087182906,4.22892674,102.79,102.76,43.51166296]
[1770087183109,4.22892674,102.81,102.77,9.45171746]
[1770087183402,4.22892674,102.81,102.77,13.5889347]
[1770087183607,146.46375732,102.86,102.79,13.5889347]
[1770087183608,4.22892674,102.83,102.79,13.5889347]
[1770087183804,13.6806442,102.83,102.79,13.5889347]
[1770087184110,4.22892674,102.83,102.79,13.5889347]
[1770087184408,13.6806442,102.83,102.79,13.5889347]
[1770087184607,4.22892674,102.81,102.78,9.45171746]
[1770087185297,4.22892674,102.81,102.79,9.72857281]
[1770087187713,4.22892674,102.82,102.79,19.18029027]
[1770087188215,24.31016731,103.16,102.79,19.18029027]
[1770087188216,4.22892674,102.85,102.81,13.5889347]
[1770087188397,4.22892674,102.85,102.82,9.45171746]
[1770087189194,13.6806442,102.85,102.8,4.13721724]
[1770087189395,4.22892674,102.84,102.81,9.45171746]
[1770087189711,4.22892674,102.84,102.81,13.5889347]
[1770087189911,4.22892674,102.83,102.81,9.72600412]
[1770087190214,4.22892674,102.81,102.77,13.5889347]
[1770087190601,13.6806442,102.81,102.77,13.5889347]
[1770087190823,4.22892674,102.81,102.79,9.72810794]
[1770087191037,4.22892674,102.79,102.77,9.72977979]
[1770087191308,13.6806442,102.79,102.77,9.72977979]
[1770087191894,13.6806442,102.79,102.76,34.05874531]
[1770087193200,9.45171746,102.8,102.76,47.64768001]
[1770087193398,13.6806442,102.8,102.76,47.64768001]
[1770087193623,4.22892674,102.79,102.76,38.19596255]
[1770087194517,23.40928534,102.79,102.76,9.731413]
[1770087194817,13.6806442,102.79,102.76,9.731413]
[1770087195904,4.22892674,102.79,102.76,38.19716274]
[1770087196309,9.45171746,102.8,102.76,47.6488802]
[1770087196516,23.40753823,102.81,102.76,47.6488802]
[1770087196699,4.22892674,102.8,102.76,38.19716274]
[1770087197018,13.6806442,102.8,102.76,38.19716274]
[1770087197317,13.6806442,102.8,102.76,47.6488802]
[1770087199623,13.6806442,102.8,102.77,4.13721724]
[1770087199823,13.6806442,102.8,102.76,47.6488802]
[1770087201416,4.22892674,102.8,102.76,47.6488802]
[1770087201827,13.86913888,102.81,102.77,13.60497016]
[1770087202325,4.41742142,102.8,102.77,13.60497016]
[1770087202624,13.86913888,102.8,102.77,4.1532527]
[1770087202924,13.86913888,102.8,102.78,9.72951936]
[1770087203724,4.41742142,102.8,102.78,9.72951936]
[1770087205528,13.86913888,102.8,102.78,9.72951936]
[1770087206327,4.41742142,102.79,102.77,9.73025047]
[1770087206515,4.41742142,102.78,102.76,34.05887664]
[1770087206920,8.39105927,102.79,102.77,9.73036632]
[1770087207125,4.41742142,102.79,102.77,9.73036632]
[1770087211437,4.41742142,102.8,102.77,13.88361902]
[1770087215638,4.41742142,102.81,102.79,9.72857281]
[1770087215841,8.39105927,102.81,102.78,13.88219561]
[1770087217126,8.39105927,102.81,102.78,9.72894291]
[1770087219533,8.39105927,102.81,102.78,13.88219561]
[1770087220445,8.39105927,102.8,102.78,9.72894291]
[1770087220639,4.41742142,102.8,102.78,9.72894291]
[1770087222828,8.39028133,102.81,102.78,13.88219561]
[1770087225821,4.41742142,102.81,102.78,13.88219561]
[1770087227436,8.39028133,102.81,102.78,13.88219561]
[1770087227635,4.41742142,102.81,102.78,13.88219561]
[1770087228845,4.41742142,102.8,102.78,9.72894291]
[1770087233553,4.40534405,102.81,102.78,38.10548598]
[1770087233856,8.37820396,102.82,102.79,4.05274467]
[1770087234243,4.40534405,102.81,102.79,4.05274467]
[1770087234446,4.40534405,102.81,102.78,38.10548598]
[1770087234761,8.37820396,102.81,102.78,38.10548598]
[1770087235756,4.40534405,102.79,102.77,9.72997258]
[1770087236457,4.40534405,102.79,102.76,28.37998489]
[1770087236458,8.37820396,102.79,102.76,13.78361523]
[1770087236757,4.40534405,102.77,102.75,9.73187143]
[1770087237768,8.37820396,102.78,102.75,9.73187143]
[1770087238047,8.37820396,102.78,102.75,13.7846161]
[1770087238552,8.37820396,102.78,102.73,6.44501028]
[1770087238553,4.40534405,102.76,102.73,6.52489504]
[1770087238739,4.40534405,102.75,102.73,12.20595712]
[1770087239143,4.40534405,102.75,102.73,2.47215037]
[1770087239144,8.37820396,102.75,102.73,2.47215037]
[1770087239351,4.40534405,102.74,102.73,2.47215037]
[1770087240270,3.97285991,102.75,102.73,2.47215037]
[1770087240271,8.37820396,102.75,102.73,2.47215037]
[1770087240642,4.40534405,102.75,102.73,2.47215037]
[1770087240943,4.40534405,102.78,102.75,4.05274467]
[1770087241252,4.40534405,102.78,102.74,8.02560458]
[1770087241655,3.97285991,102.82,102.78,4.05274467]
[1770087241843,38.87932969,102.89,102.81,8.02560458]
[1770087241844,4.40534405,102.84,102.81,8.02560458]
[1770087242157,4.40534405,102.85,102.82,9.72573429]
[1770087242455,8.37820396,102.84,102.8,17.75277585]
[1770087242664,14.12782898,102.86,102.82,8.02560458]
[1770087242850,4.40534405,102.85,102.81,17.75183851]
[1770087243050,8.37820396,102.85,102.81,17.75183851]
[1770087243676,34.02736534,102.86,102.78,3.97285991]
[1770087243677,4.40534405,102.82,102.78,4.05274467]
[1770087243957,8.37820396,102.82,102.79,9.72800189]
[1770087244151,4.40534405,102.81,102.78,4.05274467]
[1770087244355,4.40534405,102.8,102.78,9.72896186]
[1770087245148,4.40534405,102.81,102.78,9.72896186]
[1770087245354,4.40534405,102.82,102.78,17.75456644]
[1770087245554,4.40534405,102.82,102.78,42.07836484]
[1770087245943,8.37820396,102.82,102.78,42.07836484]
[1770087248168,4.40534405,102.82,102.78,38.10550493]
[1770087248360,4.40534405,102.82,102.79,4.05274467]
[1770087248760,3.97285991,102.83,102.8,4.05274467]
[1770087248951,4.40534405,102.84,102.8,8.02560458]
[1770087249150,4.40534405,102.83,102.8,4.05274467]
[1770087249352,4.40534405,102.83,102.79,8.02560458]
[1770087249863,8.37820396,102.82,102.78,13.78170653]
[1770087250057,34.03376284,102.84,102.78,9.72896186]
[1770087250058,8.37820396,102.81,102.78,9.72896186]
[1770087250943,14.13173357,102.82,102.78,17.75456644]
[1770087253470,18.10459348,102.82,102.78,17.75456644]
[1770087254453,18.10459348,102.82,102.78,13.78170653]
[1770087254770,18.10459348,102.82,102.78,17.75456644]
[1770087255672,8.37820396,102.82,102.78,42.07836484]
[1770087255868,4.40534405,102.82,102.78,34.05276026]
[1770087256075,4.40534405,102.81,102.78,9.72896186]
[1770087257465,14.13204206,102.81,102.77,42.08152248]
[1770087258056,14.13204206,102.81,102.78,4.05274467]
[1770087260279,14.13204206,102.81,102.77,42.39344268]
[1770087260462,4.27461671,102.8,102.77,38.42058277]
[1770087262663,4.27461671,102.8,102.77,9.72993103]
[1770087262664,14.00228272,102.8,102.77,9.72993103]
[1770087263274,8.24747662,102.79,102.76,14.09576828]
[1770087263476,8.24747662,102.79,102.76,9.73110341]
[1770087264682,17.97606315,102.79,102.76,9.73110341]
[1770087264888,4.27461671,102.78,102.75,14.09644513]
[1770087267164,17.97562939,102.8,102.76,4.36466487]
[1770087267490,4.27461671,102.79,102.75,14.09644513]
[1770087267668,4.27461671,102.78,102.75,18.06930504]
[1770087268285,4.27461671,102.79,102.76,4.36466487]
[1770087270362,4.27461671,102.79,102.75,4.36466487]
[1770087270567,4.27461671,102.79,102.76,4.36466487]
[1770087274090,4.27461671,102.79,102.76,14.09548883]
[1770087274674,4.27461671,102.78,102.75,14.09659992]
[1770087275088,17.97552653,102.8,102.77,4.36466487]
[1770087275294,4.27461671,102.79,102.76,18.06848328]
[1770087275475,4.27461671,102.79,102.76,14.09562337]
[1770087280399,14.00172331,102.81,102.78,4.36466487]
[1770087280587,4.27461671,102.8,102.78,4.36466487]
[1770087281173,4.27461671,102.81,102.78,8.33752478]